bitfinex/quotes_ETHUSD_20250611
["timestamp","ask_amount","ask_price","bid_price","bid_amount"]
[1749600793486,0.2954329,2818.9,2818.8,10.0]
[1749600793687,0.2954329,2818.9,2818.3,9.1648679]
[1749600793688,0.55,2818.6,2817.5,0.4012]
[1749600793923,0.55,2818.6,2817.6,10.0]
[1749600794103,0.55,2818.6,2817.5,9.1648679]
[1749600794104,0.55,2818.6,2817.5,8.7636679]
[1749600794904,0.55,2818.6,2817.4,10.0]
[1749600795108,0.55,2818.6,2817.6,8.7636679]
[1749600795306,0.55,2818.4,2817.3,10.0]
[1749600795509,0.55,2818.0,2817.1,0.04]
[1749600795890,0.55,2817.6,2817.1,0.04]
[1749600797491,0.55,2817.4,2817.1,0.04]
[1749600797890,0.9047,2817.4,2817.1,0.04]
[1749600799638,0.55,2817.2,2817.1,0.04]
[1749600800246,1.38693063,2817.2,2817.1,0.04]
[1749600800449,2.68063063,2817.2,2817.1,0.04]
[1749600800640,3.08846912,2817.2,2817.1,0.04]
[1749600800846,4.13152339,2817.2,2817.1,0.04]
[1749600801153,3.08846912,2817.2,2817.1,0.04]
[1749600801351,4.13152339,2817.2,2817.1,0.04]
[1749600801727,4.13152339,2817.2,2816.1,0.04]
[1749600801728,0.55,2817.0,2816.1,0.04]
[1749600802050,1.3196,2817.1,2816.1,0.04]
[1749600802051,0.55,2816.6,2816.1,0.04]
[1749600802261,0.55,2816.2,2816.1,0.04]
[1749600802443,1.38693063,2816.2,2816.1,0.04]
[1749600803721,2.43437877,2816.2,2816.1,0.04]
[1749600803920,2.9494364,2816.2,2816.1,0.04]
[1749600804354,3.29858578,2816.2,2816.1,0.04]
[1749600805255,5.32574828,2816.2,2815.0,7.04836099]
[1749600805558,0.55,2815.5,2815.3,7.04836099]
[1749600805758,0.55,2815.3,2815.0,17.04836099]
[1749600805958,1.05123973,2815.6,2815.0,17.04836099]
[1749600806256,0.55,2815.4,2815.3,10.0]
[1749600806467,2.44181526,2815.4,2815.2,7.04836099]
[1749600806677,0.55,2815.2,2814.9,7.04836099]
[1749600806828,0.84057553,2815.1,2814.9,7.04836099]
[1749600807018,0.55,2814.9,2814.8,7.04836099]
[1749600807226,0.55,2814.9,2814.8,23.72436099]
[1749600807426,0.55,2815.2,2814.8,7.04836099]
[1749600807660,0.55,2815.3,2815.2,10.0]
[1749600807967,1.39173623,2815.3,2815.2,10.0]
[1749600808933,1.39173623,2815.3,2814.5,1.155]
[1749600809127,0.55,2815.1,2814.9,10.0]
[1749600809362,0.55,2815.1,2815.0,7.04836099]
[1749600809558,0.55,2815.3,2815.2,40.0]
[1749600809764,1.39087497,2815.3,2815.2,10.0]
[1749600810449,2.44304526,2815.3,2815.2,10.0]
[1749600810764,1.39087497,2815.3,2815.2,10.0]
[1749600811229,0.84087497,2815.3,2815.2,10.0]
[1749600811429,0.84087497,2815.3,2815.2,17.04836099]
[1749600811963,1.2383,2815.9,2815.3,10.0]
[1749600811964,1.05095795,2815.7,2815.3,10.0]
[1749600812170,2.45261092,2815.9,2815.6,17.04836099]
[1749600812330,1.05095795,2816.3,2815.7,40.4813]
[1749600812674,1.05095795,2816.7,2816.6,10.0]
[1749600812888,0.84044101,2816.7,2816.6,21.28536099]
[1749600813224,1.19514101,2816.7,2816.6,21.28536099]
[1749600813427,0.55,2816.6,2816.1,7.04836099]
[1749600813653,0.84044101,2816.5,2816.2,40.0]
[1749600813824,0.3547,2816.8,2816.2,10.0]
[1749600814026,1.19549049,2816.7,2816.6,20.0]
[1749600814257,1.19549049,2816.7,2816.6,40.0]
[1749600814854,0.3547,2816.7,2816.6,40.4813]
[1749600815058,0.04,2816.9,2816.8,30.0]
[1749600815387,1.23586852,2816.9,2816.8,8.77286351]
[1749600815541,1.23586852,2816.9,2816.7,13.005]
[1749600815735,0.3547,2816.8,2816.7,22.647]
[1749600815948,2.10247946,2817.6,2816.7,22.647]
[1749600815949,1.05095795,2817.3,2816.8,40.0]
[1749600816186,0.04,2817.9,2817.5,30.0]
[1749600816349,0.04,2817.9,2817.8,42.32173142]
[1749600816551,0.04,2817.9,2817.8,53.47673142]
[1749600816779,0.04,2817.9,2817.8,53.95803142]
[1749600817076,0.04,2817.9,2817.8,50.40916351]
[1749600817277,0.04,2817.9,2817.8,53.95803142]
[1749600817574,0.04,2817.9,2817.8,54.30987006]
[1749600817935,0.3354329,2818.9,2818.8,33.54760891]
[1749600818147,1.05095795,2820.1,2818.9,10.0]
[1749600818392,1.2646,2820.2,2819.5,18.829]
[1749600818547,0.83868573,2819.8,2818.9,10.0]
[1749600818881,2.66625297,2820.2,2818.8,0.4813]
[1749600818882,1.05095795,2820.1,2819.2,10.0]
[1749600819042,1.2646,2820.2,2819.7,30.0]
[1749600819238,1.05095795,2820.8,2819.8,8.77286351]
[1749600819447,1.2529,2820.6,2819.8,48.77286351]
[1749600821279,0.55,2820.4,2819.8,48.77286351]
[1749600821594,1.8099,2819.8,2818.7,1.155]
[1749600821793,0.55,2819.6,2818.8,5.21]
[1749600821953,0.55,2819.6,2818.9,10.0]
[1749600822288,0.55,2819.6,2818.2,9.92786351]
[1749600822440,0.55,2819.4,2818.3,30.0]
[1749600822641,0.55,2819.4,2818.3,18.45920076]
[1749600822888,0.55,2819.2,2818.4,10.0]
[1749600823093,0.55,2819.2,2818.5,10.0]
[1749600823314,0.55,2819.2,2818.3,0.29620076]
[1749600823463,0.55,2819.2,2818.4,10.0]
[1749600823666,0.55,2819.2,2818.5,10.0]
[1749600824367,0.55,2819.2,2818.3,10.29620076]
[1749600825480,0.55,2819.2,2818.3,30.0]
[1749600826079,0.18099,2819.3,2818.0,9.188]
[1749600826080,0.55,2819.0,2818.0,9.188]
[1749600827684,1.2186,2819.1,2818.0,9.188]
[1749600827888,0.55,2819.0,2818.0,9.188]
[1749600828087,0.55,2819.0,2818.3,30.0]
[1749600828396,1.2186,2819.1,2818.3,30.0]
[1749600828581,1.2186,2819.1,2818.0,9.188]
[1749600828582,0.55,2819.0,2818.0,9.188]
[1749600828885,0.55,2819.0,2818.1,30.0]
[1749600829458,0.55,2819.0,2818.0,17.96086351]
[1749600829459,0.55,2819.0,2818.5,30.0]
[1749600829667,0.55,2819.0,2818.5,2.565]
[1749600829868,0.55,2819.0,2818.6,30.0]
[1749600830190,0.55,2819.0,2818.5,10.0]
[1749600830191,0.55,2819.0,2818.5,30.0]
[1749600831382,0.55,2819.0,2818.1,10.0]
[1749600831579,0.55,2819.0,2818.3,10.0]
[1749600831785,0.55,2819.0,2818.2,30.0]
[1749600832700,0.55,2819.0,2818.4,8.77286351]
[1749600833001,0.55,2819.0,2818.5,10.0]
[1749600833296,0.04,2819.9,2818.0,13.151]
[1749600833297,0.04,2819.9,2818.9,40.0]
[1749600833470,0.04,2819.9,2819.8,40.0]
[1749600834590,0.04,2819.9,2819.8,18.232]
[1749600834793,0.04,2819.9,2818.0,9.188]
[1749600834968,0.04,2819.9,2819.2,10.0]
[1749600835299,0.55,2819.7,2818.9,12.73486351]
[1749600835499,0.55,2819.7,2819.0,10.0]
[1749600836707,0.55,2819.5,2818.5,13.88486351]
[1749600836904,0.55,2819.1,2818.1,8.77286351]
[1749600837109,0.55,2819.1,2818.5,1.153]
[1749600837505,0.55,2819.1,2818.2,8.746]
[1749600837689,0.3547,2818.2,2818.1,14.64386351]
[1749600838096,0.3547,2818.2,2818.1,24.64386351]
[1749600838309,0.3547,2818.2,2818.1,14.64386351]
[1749600838824,0.3547,2818.5,2818.4,10.0]
[1749600838983,0.3547,2818.5,2818.4,40.0]
[1749600839390,0.3547,2818.5,2818.4,17.649]
[1749600839591,0.3547,2818.5,2818.3,15.299]
[1749600839813,0.3547,2818.7,2818.5,10.0]
[1749600840015,0.3547,2818.7,2818.5,8.77286351]
[1749600840325,0.9047,2818.7,2818.6,30.0]
[1749600840530,0.9047,2818.7,2818.5,8.77286351]
[1749600840874,0.3547,2818.5,2818.2,6.266]
[1749600841081,0.3547,2818.5,2818.3,10.0]
[1749600841314,0.3547,2818.5,2818.2,30.0]
[1749600841625,0.9047,2818.3,2818.2,10.0]
[1749600841980,0.9047,2818.3,2818.2,40.0]
[1749600842328,0.9047,2818.3,2818.2,10.0]
[1749600842483,0.55,2818.3,2818.2,10.0]
[1749600842901,1.249,2818.8,2818.3,10.0]
[1749600843184,0.55,2818.7,2818.4,10.0]
[1749600843917,0.7299,2818.7,2818.1,10.0]
[1749600844125,0.7299,2818.7,2817.8,10.0]
[1749600844428,0.7299,2818.7,2817.7,1.153]
[1749600844739,0.55,2818.5,2817.7,1.153]
[1749600844946,0.17842,2818.4,2817.7,1.153]
[1749600845111,0.55,2818.1,2817.2,10.0]
[1749600845317,0.55,2818.1,2817.3,10.0]
[1749600845504,0.55,2818.1,2817.1,0.04]
[1749600845709,0.55,2818.1,2817.2,10.0]
[1749600845955,0.9047,2817.9,2817.3,10.0]
[1749600846103,1.5889,2818.2,2817.9,10.0]
[1749600846295,0.55,2818.1,2817.9,10.0]
[1749600846495,0.55,2818.1,2817.5,10.0]
[1749600846926,0.55,2818.1,2817.3,10.0]
[1749600847113,0.55,2818.1,2817.2,15.064]
[1749600847114,0.55,2817.9,2817.2,4.611]
[1749600847310,1.2342,2818.8,2817.9,10.0]
[1749600847618,1.2342,2818.8,2817.9,13.951]
[1749600848137,0.3547,2818.7,2817.9,13.951]
[1749600848341,0.3547,2818.7,2817.9,3.951]
[1749600848657,0.55,2818.6,2818.0,10.0]
[1749600848936,0.55,2818.6,2817.9,10.0]
[1749600848937,0.76389,2818.6,2817.9,10.0]
[1749600849238,0.55,2818.6,2817.9,10.0]
[1749600852563,0.3547,2818.1,2817.9,10.0]
[1749600853049,0.9047,2818.0,2817.9,10.0]
[1749600853255,0.3547,2818.0,2817.9,40.0]
[1749600854356,0.3547,2818.6,2817.9,10.0]
[1749600854541,0.56859,2818.6,2817.9,10.0]
[1749600855337,0.3547,2818.2,2817.9,10.0]
[1749600856322,0.55,2817.7,2817.3,10.0]
[1749600856662,0.9047,2817.7,2817.1,0.04]
[1749600857037,0.9047,2817.7,2817.1,10.04]
[1749600857721,0.9047,2817.7,2817.1,0.04]
[1749600858358,0.9047,2817.5,2817.1,0.04]
[1749600858564,0.55,2817.3,2817.1,0.04]
[1749600860422,0.9047,2817.5,2817.1,10.04]
[1749600860623,0.9047,2817.4,2817.1,10.04]
[1749600861139,0.9047,2817.4,2817.1,0.04]
[1749600864136,0.3547,2818.1,2818.0,40.0]
[1749600865871,0.3547,2818.1,2817.7,7.04010138]
[1749600866029,0.3547,2818.1,2817.5,5.054]
[1749600866235,0.55,2818.0,2817.4,10.0]
[1749600866459,0.55,2818.0,2817.4,30.0]
[1749600867029,0.55,2818.0,2817.5,10.0]
[1749600867230,0.55,2818.0,2817.8,10.0]
[1749600867737,0.3547,2817.9,2817.8,10.0]
[1749600868145,0.3547,2817.9,2817.8,40.0]
[1749600868733,0.3547,2818.3,2817.8,10.0]
[1749600869743,0.9047,2818.1,2817.8,10.0]
[1749600870136,0.55,2817.9,2817.4,10.0]
[1749600871437,0.55,2817.9,2817.2,11.133]
[1749600871641,5.0647,2819.0,2817.4,17.04010138]
[1749600871642,0.3547,2818.2,2817.4,17.04010138]
[1749600873547,2.185,2818.1,2817.4,10.0]
[1749600873868,2.185,2818.1,2817.6,10.0]
[1749600874075,2.185,2818.1,2817.5,10.0]
[1749600874250,2.185,2818.1,2817.7,10.0]
[1749600874444,2.185,2818.1,2817.6,10.0]
[1749600874861,2.185,2818.1,2817.7,7.04010138]
[1749600875074,0.9047,2818.1,2817.7,7.04010138]
[1749600875671,0.9047,2818.1,2817.8,10.0]
[1749600876184,0.9047,2818.1,2817.3,10.0]
[1749600876553,0.9047,2818.1,2817.5,7.04010138]
[1749600876953,0.9047,2818.1,2817.3,10.0]
[1749600876954,0.9047,2818.1,2817.4,10.0]
[1749600877180,0.9047,2818.1,2817.5,30.0]
[1749600877652,0.9047,2818.1,2817.7,7.04010138]
[1749600877856,1.2803,2818.4,2817.7,7.04010138]
[1749600877857,0.3547,2818.0,2817.7,7.04010138]
[1749600878059,0.3547,2818.0,2817.8,30.0]
[1749600878568,0.3547,2818.0,2817.9,10.0]
[1749600878764,0.3547,2818.0,2817.9,40.0]
[1749600879907,0.3547,2818.7,2818.1,10.0]
[1749600880074,0.55,2818.4,2818.1,10.0]
[1749600880407,0.3547,2818.5,2818.0,5.647]
[1749600880408,0.3547,2818.3,2818.0,10.0]
[1749600882279,0.3547,2818.5,2818.3,10.0]
[1749600884012,1.2703,2818.8,2818.3,10.0]
[1749600884013,0.3547,2818.7,2818.3,10.0]
[1749600884220,0.3547,2818.7,2818.5,17.04010138]
[1749600885161,0.3547,2818.7,2818.5,10.0]
[1749600885364,0.9047,2818.6,2817.9,10.0]
[1749600885594,0.55,2818.4,2818.1,10.0]
[1749600886302,0.55,2818.4,2818.0,10.0]
[1749600886699,0.76559,2818.4,2817.8,10.0]
[1749600887020,0.76559,2818.4,2817.7,20.93210138]
[1749600887610,0.76559,2818.4,2817.7,17.04010138]
[1749600887758,0.76559,2818.4,2817.1,0.04]
[1749600887759,0.55,2818.0,2817.1,0.04]
[1749600887964,0.9047,2817.4,2817.1,0.04]
[1749600888303,0.9047,2817.4,2817.2,10.0]
[1749600888669,0.9047,2817.4,2817.1,7.08010138]
[1749600889001,0.9047,2817.4,2817.1,0.04]
[1749600889681,0.9047,2817.4,2817.1,10.04]
[1749600890683,0.9047,2817.4,2817.1,0.04]
[1749600891887,0.3547,2817.3,2817.1,0.04]
[1749600892277,0.3547,2817.3,2817.2,17.04010138]
[1749600892596,0.3547,2817.3,2817.2,10.0]
[1749600894102,0.3547,2817.4,2817.3,10.0]
[1749600894275,0.3547,2817.4,2817.1,0.04]
[1749600897918,0.3547,2817.4,2817.2,10.0]
[1749600898409,0.3547,2817.5,2817.2,10.0]
[1749600899173,0.3547,2817.5,2817.4,40.0]
[1749600899374,1.2984,2818.0,2817.6,10.0]
[1749600899375,0.3547,2817.7,2817.6,10.0]
[1749600899596,0.3547,2817.7,2817.4,10.0]
[1749600899798,0.3547,2817.7,2817.3,7.04010138]
[1749600899799,1.2984,2818.0,2817.6,7.04010138]
[1749600900211,1.2812,2818.3,2817.7,40.0]
[1749600900415,1.2812,2818.3,2817.7,10.0]
[1749600900416,0.55,2818.2,2817.7,10.0]
[1749600900622,0.754679,2818.2,2817.7,10.0]
[1749600900921,0.3545,2819.1,2818.0,10.0]
[1749600901290,1.6145,2818.9,2818.0,10.0]
[1749600901810,0.3545,2818.7,2818.0,10.0]
[1749600902012,0.3545,2818.3,2818.0,10.0]
[1749600902227,1.3426,2819.2,2818.4,0.5325]
[1749600902375,4.71,2820.4,2819.1,10.0]
[1749600902577,1.3426,2819.8,2819.1,10.0]
[1749600903100,1.3426,2819.8,2819.4,10.0]
[1749600903323,1.2183,2820.2,2819.7,20.0]
[1749600903618,1.2183,2820.2,2819.8,40.0]
[1749600904214,1.2183,2820.7,2819.8,40.0]
[1749600904516,1.2183,2820.7,2819.8,44.4085]
[1749600905000,0.04,2820.9,2819.8,44.4085]
[1749600905316,0.04,2820.9,2820.6,7.04010138]
[1749600905618,0.04,2820.9,2820.7,30.0]
[1749600905778,0.04,2820.9,2820.8,30.676]
[1749600906122,0.04,2820.9,2820.5,10.0]
[1749600906279,0.04,2820.9,2820.2,0.5325]
[1749600906611,0.04,2820.9,2820.4,30.0]
[1749600906774,0.55,2820.7,2820.3,30.0]
[1749600906972,0.55,2820.7,2820.2,17.4004311]
[1749600906973,0.55,2820.7,2820.5,30.0]
[1749600907177,0.55,2820.7,2820.6,40.0]
[1749600907602,0.04,2820.9,2820.5,7.04010138]
[1749600907803,0.04,2820.9,2820.8,47.04010138]
[1749600908204,0.04,2820.9,2820.8,51.44660138]
[1749600908407,0.04,2820.9,2820.8,55.44289809]
[1749600908591,1.2718,2821.9,2821.6,10.0]
[1749600908794,1.2718,2821.9,2821.5,10.0]
[1749600908997,1.2718,2821.9,2821.6,10.0]
[1749600909393,1.2718,2821.9,2821.4,10.0]
[1749600909923,1.2718,2821.9,2821.4,30.0]
[1749600910281,0.55,2821.8,2821.4,30.0]
[1749600910482,0.55,2821.4,2820.6,1.103]
[1749600910688,0.55,2821.4,2820.1,30.0]
[1749600911225,0.55,2821.4,2820.0,30.0]
[1749600911412,0.55,2821.4,2820.2,40.0]
[1749600911617,0.55,2821.4,2820.3,30.0]
[1749600911826,0.55,2821.2,2820.2,7.04010138]
[1749600912013,0.55,2821.0,2820.3,40.0]
[1749600912336,0.55,2820.8,2819.9,40.0]
[1749600912639,0.55,2820.8,2819.9,30.0]
[1749600912825,0.55,2820.8,2819.9,10.0]
[1749600913006,0.55,2820.6,2819.9,10.0]
[1749600913540,0.55,2820.6,2819.8,7.04010138]
[1749600913845,0.55,2820.6,2819.9,8.66]
[1749600914204,0.55,2820.6,2820.0,10.0]
[1749600914399,0.55,2820.2,2819.3,1.092]
[1749600914744,0.55,2819.8,2819.2,30.0]
[1749600915402,0.55,2819.8,2819.2,0.36058159]
[1749600915615,1.2355,2819.9,2819.5,10.0]
[1749600915822,0.55,2820.1,2819.6,10.0]
[1749600916028,0.55,2820.1,2819.8,10.0]
[1749600916238,0.55,2820.1,2819.5,22.662]
[1749600916438,0.55,2820.1,2819.5,12.662]
[1749600916750,0.72855,2820.1,2819.6,14.069]
[1749600917555,0.55,2820.1,2819.6,14.069]
[1749600918062,4.04818,2821.3,2819.8,30.0]
[1749600918063,1.3039,2820.5,2819.8,30.0]
[1749600918266,1.3039,2820.5,2819.8,3.869]
[1749600918580,0.55,2820.4,2819.9,30.0]
[1749600919074,0.73539,2820.4,2819.6,10.0]
[1749600919378,0.55,2820.2,2819.4,30.0]
[1749600919519,0.55,2820.2,2819.4,19.84]
[1749600920652,0.55,2820.2,2819.4,23.71]
[1749600920857,0.55,2820.2,2819.5,30.0]
[1749600921057,0.55,2820.0,2819.5,30.0]
[1749600921262,0.55,2820.0,2819.3,2.507]
[1749600921420,0.55,2820.0,2819.6,7.04010138]
[1749600921622,0.55,2820.0,2819.9,7.04010138]
[1749600921848,0.55,2820.2,2819.9,7.04010138]
[1749600922451,0.3545,2821.1,2820.0,30.0]
[1749600922636,1.3009,2821.2,2820.4,7.04010138]
[1749600922836,1.3009,2821.2,2820.4,10.91210138]
[1749600923436,1.3009,2821.2,2820.4,7.04010138]
[1749600923633,1.3009,2821.2,2820.5,10.0]
[1749600923852,0.55,2821.1,2820.5,10.0]
[1749600924069,1.3009,2821.2,2820.5,10.0]
[1749600924361,0.55,2821.1,2820.5,10.0]
[1749600925005,0.752908,2821.1,2820.4,7.04010138]
[1749600925155,0.752908,2821.1,2820.5,10.0]
[1749600925333,0.55,2821.1,2820.5,10.0]
[1749600925529,1.3009,2821.2,2820.5,10.0]
[1749600925853,1.3088,2821.8,2821.1,7.04010138]
[1749600926047,0.55,2821.7,2821.1,7.04010138]
[1749600926222,1.3088,2821.8,2821.1,7.04010138]
[1749600927141,1.3088,2821.8,2820.7,10.0]
[1749600927345,0.55,2821.7,2820.7,10.0]
[1749600927538,2.2144,2821.3,2820.5,3.865]
[1749600927739,0.3545,2821.0,2820.5,35.858]
[1749600927965,0.9045,2820.9,2820.5,3.282]
[1749600928153,0.9045,2820.9,2820.1,23.168]
[1749600928664,0.9045,2820.9,2820.3,30.0]
[1749600929768,0.3545,2820.9,2820.7,7.04010138]
[1749600929953,0.3545,2821.4,2820.9,30.0]
[1749600930339,0.3545,2821.4,2821.1,7.04010138]
[1749600930894,1.593,2822.1,2821.4,30.0]
[1749600931032,1.593,2822.1,2821.3,10.0]
[1749600931033,1.593,2822.1,2821.7,9.455]
[1749600931359,1.2397,2822.6,2821.8,10.0]
[1749600931558,1.2397,2822.6,2821.8,40.0]
[1749600931793,1.2397,2822.6,2821.4,1.092]
[1749600931935,0.3545,2822.5,2821.3,7.04010138]
[1749600932131,4.71,2822.8,2821.2,0.473]
[1749600932132,0.3545,2821.8,2821.5,10.0]
[1749600932329,0.55,2821.7,2820.5,0.473]
[1749600932561,0.55,2821.5,2820.8,7.04010138]
[1749600932829,0.3545,2821.8,2821.3,10.0]
[1749600933030,0.3545,2821.8,2821.6,50.0]
[1749600933235,0.3545,2821.8,2821.6,10.0]
[1749600933436,0.55,2821.7,2821.6,10.0]
[1749600933675,0.55,2821.7,2821.6,14.261]
[1749600934053,0.9045,2821.8,2821.6,14.261]
[1749600934388,0.04,2821.9,2821.7,40.0]
[1749600934534,0.04,2821.9,2821.7,0.45120312]
[1749600934734,0.04,2821.9,2821.6,30.0]
[1749600934735,0.04,2821.9,2821.8,40.0]
[1749600934948,0.04,2821.9,2821.5,30.0]
[1749600935142,0.04,2821.9,2821.7,40.0]
[1749600935343,0.04,2821.9,2821.7,30.0]
[1749600936080,0.04,2821.9,2821.8,30.473]
[1749600937281,0.04,2821.9,2821.6,1.091]
[1749600937454,0.55,2821.8,2821.6,1.091]
[1749600938588,1.31,2821.9,2821.6,1.091]
[1749600938741,0.59,2821.9,2821.8,10.0]
[1749600938938,0.04,2821.9,2821.8,40.0]
[1749600940035,0.04,2821.9,2821.8,47.89183726]
[1749600940231,0.04,2821.9,2821.8,48.34304038]
[1749600941071,0.04,2821.9,2821.8,56.02393864]
[1749600941255,0.04,2822.9,2822.8,47.51310138]
[1749600941464,0.04,2822.9,2822.8,48.60410138]
[1749600941686,0.04,2823.9,2822.9,10.473]
[1749600941888,0.04,2823.9,2823.7,30.473]
[1749600942185,0.04,2823.9,2823.8,40.0]
[1749600942573,0.04,2823.9,2823.8,41.091]
[1749600942944,0.04,2823.9,2823.8,40.0]
[1749600943144,0.59,2823.9,2823.8,40.0]
[1749600943384,1.8643,2823.9,2823.2,40.0]
[1749600943558,1.8643,2823.9,2823.3,10.0]
[1749600943887,0.55,2823.8,2823.3,10.0]
[1749600944058,0.55,2823.8,2823.5,10.0]
[1749600944385,0.04,2823.9,2823.7,10.0]
[1749600944584,0.04,2823.9,2823.8,15.665]
[1749600944786,0.04,2823.9,2823.8,10.0]
[1749600945352,1.2448,2823.9,2823.8,10.0]
[1749600945654,1.7948,2823.9,2823.8,10.0]
[1749600946296,0.04,2823.9,2823.8,10.0]
[1749600947322,0.04,2823.9,2823.8,40.0]
[1749600947824,0.04,2823.9,2823.8,10.0]
[1749600948676,0.04,2823.9,2823.8,40.0]
[1749600948910,0.04,2823.9,2823.8,16.127]
[1749600950377,0.04,2823.9,2823.8,10.0]
[1749600950782,0.55,2823.8,2822.9,1.098]
[1749600950978,0.55,2823.6,2822.8,40.0]
[1749600951183,0.55,2823.6,2822.9,10.0]
[1749600951511,0.55,2823.6,2822.9,30.0]
[1749600951714,0.73679,2823.6,2822.8,1.098]
[1749600951878,0.73679,2823.6,2822.1,0.4907]
[1749600952079,0.55,2823.4,2822.4,1.098]
[1749600952278,0.55,2823.4,2822.4,1.44738156]
[1749600952521,0.3545,2823.3,2822.5,30.0]
[1749600952722,0.3545,2823.3,2822.4,1.44738156]
[1749600952723,0.55,2823.0,2822.4,1.44738156]
[1749600952881,0.72897,2823.0,2822.4,1.44738156]
[1749600953219,1.2397,2823.1,2822.6,10.0]
[1749600953380,0.55,2823.4,2823.0,10.0]
[1749600953580,0.55,2823.4,2822.8,10.0]
[1749600953786,0.55,2823.4,2823.2,10.0]
[1749600954094,0.55,2823.4,2823.0,10.0]
[1749600954288,1.3416,2823.9,2823.4,10.0]
[1749600954701,1.3416,2823.9,2822.4,0.34938156]
[1749600955022,0.55,2823.6,2822.6,1.098]
[1749600955386,0.55,2823.2,2822.5,30.0]
[1749600956119,0.55,2823.2,2822.3,30.0]
[1749600956289,0.55,2823.0,2822.6,10.0]
[1749600956490,0.55,2822.8,2822.2,1.098]
[1749600957211,0.55,2822.8,2822.0,30.0]
[1749600957396,0.55,2822.8,2821.6,30.0]
[1749600957615,0.55,2822.6,2821.7,25.586]
[1749600957807,0.55,2822.6,2821.8,12.423]
[1749600957997,0.55,2822.6,2822.0,7.04010138]
[1749600958196,0.55,2822.6,2822.1,18.242]
[1749600958606,0.55,2822.6,2821.8,3.884]
[1749600958607,0.55,2822.6,2821.6,0.35680694]
[1749600958807,0.55,2822.6,2821.7,10.0]
[1749600959020,0.55,2822.4,2821.6,30.34597045]
[1749600959331,0.55,2822.4,2821.6,10.34597045]
[1749600959883,1.2039,2822.3,2821.6,10.34597045]
[1749600960535,1.2039,2822.3,2821.5,9.173]
[1749600961516,0.55,2822.2,2821.6,30.0]
[1749600961725,0.55,2822.2,2821.5,9.173]
[1749600961953,0.55,2822.2,2821.5,0.35371685]
[1749600962109,0.55,2822.2,2821.3,10.0]
[1749600962428,0.55,2822.2,2821.2,22.772]
[1749600962641,0.55,2822.2,2821.1,1.139]
[1749600962642,0.55,2821.8,2821.1,1.139]
[1749600962944,1.2082,2821.3,2821.1,0.04]
[1749600963239,0.9045,2820.8,2820.1,0.04]
[1749600963536,1.2082,2820.5,2820.1,0.04]
[1749600963852,0.55,2820.4,2820.1,0.04]
[1749600964349,0.55,2820.2,2819.1,0.04]
[1749600964546,10.3545,2820.6,2819.1,0.04]
[1749600964547,1.2082,2819.9,2819.1,0.04]
[1749600964758,0.55,2819.8,2819.1,0.04]
[1749600965059,0.55,2819.6,2819.1,0.04]
[1749600965405,0.55,2819.4,2819.1,0.04]
[1749600965611,1.8704,2819.2,2819.1,0.04]
[1749600965846,0.55,2819.8,2819.1,0.04]
[1749600966142,10.0,2820.6,2819.1,0.04]
[1749600966143,0.55,2819.6,2819.1,0.04]
[1749600966641,1.3204,2820.2,2819.3,30.0]
[1749600966847,1.3204,2820.2,2819.2,30.0]
[1749600967051,1.3204,2820.2,2819.2,23.91]
[1749600967207,0.55,2820.1,2819.2,23.538]
[1749600968146,0.55,2820.1,2819.2,13.567]
[1749600968349,0.73704,2820.1,2819.2,8.064]
[1749600968842,1.3204,2820.2,2819.1,5.038]
[1749600968843,1.3204,2820.2,2819.5,30.0]
[1749600969069,1.3204,2820.2,2819.9,28.821]
[1749600969568,0.55,2820.1,2819.1,0.04]
[1749600969926,0.55,2819.9,2819.1,0.04]
[1749600970129,0.55,2819.7,2819.1,0.04]
[1749600970330,0.55,2819.9,2819.1,0.04]
[1749600970628,1.2032,2819.6,2819.1,0.04]
[1749600970841,0.55,2819.5,2819.1,0.04]
[1749600972228,3.898,2820.5,2819.3,10.0]
[1749600972449,1.2181,2820.3,2819.2,10.0]
[1749600973162,1.2181,2820.3,2819.6,10.0]
[1749600973363,1.2181,2820.3,2820.0,10.0]
[1749600973563,1.3234,2820.9,2820.2,10.0]
[1749600973762,1.3234,2820.9,2820.0,12.735]
[1749600973963,1.3234,2820.9,2820.1,10.0]
[1749600974332,0.55,2820.8,2820.1,10.0]
[1749600974654,0.55,2820.8,2819.1,0.04]
[1749600974655,0.73734,2820.8,2819.6,5.3467132]